fUSD/lending_fUSD_20250106
["ID","MTS","AMOUNT","RATE_DAILY","PERIOD"]
[347871531,1736175045769,-1348.11,0.00012137,2]
[347871533,1736175045778,-749.94,0.00012137,2]
[347871534,1736175045788,-1132.34,0.00012137,2]
[347871536,1736175045797,-660.68,0.00012137,2]
[347871538,1736175045807,-500.0,0.00012137,2]
[347871539,1736175045817,-670.66,0.00012137,2]
[347871540,1736175045826,-1423.91,0.00012137,2]
[347871541,1736175045836,-156.82732917,0.0001215,2]
[347871542,1736175045846,-500.0,0.00012152,2]
[347871543,1736175045855,-150.0,0.00012153,2]
[347871544,1736175045864,-700.0,0.0001218,2]
[347871545,1736175045874,-544.8286797,0.0001218,2]
[347871547,1736175045883,-618.07,0.00012188,2]
[347871548,1736175045892,-500.0,0.00012188,2]
[347871550,1736175045902,-500.0,0.00012188,2]
[347871553,1736175045912,-500.0,0.00012188,2]
[347871555,1736175045922,-500.0,0.00012188,2]
[347871557,1736175045932,-500.0,0.0001219,2]
[347871559,1736175045942,-500.0,0.0001219,2]
[347871561,1736175045951,-500.0,0.0001219,2]
[347871563,1736175045960,-500.0,0.0001219,2]
[347871564,1736175045969,-500.0,0.0001219,2]
[347871567,1736175045979,-640.3,0.0001219,2]
[347871568,1736175045988,-670.27,0.0001219,2]
[347871570,1736175045998,-2913.46,0.0001219,2]
[347871572,1736175046007,-691.17,0.0001219,2]
[347871574,1736175046017,-1220.27,0.00012191,2]
[347871576,1736175046027,-617.1,0.00012191,2]
[347871579,1736175046037,-500.0,0.00012191,2]
[347871581,1736175046046,-500.0,0.00012191,2]
[347871583,1736175046055,-500.0,0.00012191,2]
[347871585,1736175046065,-176.25171899,0.000122,2]
[347871587,1736175046075,-180063.52670913,0.00012228,2]
[347871589,1736175046085,-500.0,0.00012242,2]
[347871590,1736175046095,-500.0,0.00012263,2]
[347871592,1736175046104,-500.0,0.00012263,2]
[347871594,1736175046114,-500.0,0.00012263,2]
[347871596,1736175046123,-943.013327,0.00012263,2]
[347871598,1736175046132,-844.832336,0.00012263,2]
[347871600,1736175046142,-1121.09,0.00012263,2]
[347871602,1736175046156,-500.0,0.00012263,2]
[347871604,1736175046176,-552.31,0.00012263,2]
[347871606,1736175046186,-1576.75,0.00012263,2]
[347871608,1736175046196,-2881.83,0.00012264,2]
[347871610,1736175046205,-2122.24,0.00012264,2]
[347871612,1736175046215,-1514.38,0.00012264,2]
[347871614,1736175046224,-500.0,0.00012264,2]
[347871616,1736175046234,-653.58,0.00012264,2]
[347871618,1736175046244,-500.0,0.00012264,2]
[347871620,1736175046253,-500.0,0.00012264,2]
[347871622,1736175046263,-500.0,0.00012264,2]
[347871624,1736175046272,-500.0,0.00012264,2]
[347871627,1736175046282,-919.48,0.00012264,2]
[347871629,1736175046294,-524.76,0.00012264,2]
[347871631,1736175046304,-210.05314667,0.0001228,2]
[347871633,1736175046314,-212537.09135752,0.0001228,2]
[347871634,1736175046324,-151.0,0.0001228,2]
[347871637,1736175046334,-151.0,0.0001228,2]
[347871638,1736175046343,-151.0,0.0001228,2]
[347871640,1736175046353,-151.0,0.0001228,2]
[347871642,1736175046362,-151.0,0.0001228,2]
[347871644,1736175046372,-170.008446,0.0001228,2]
[347871646,1736175046381,-170.008446,0.0001228,2]
[347871648,1736175046392,-9599.98388509,0.00012287,2]
[347871651,1736175046402,-255378.92179648,0.00012287,2]
[347871653,1736175046412,-744726.28644599,0.00012287,2]
[347871654,1736175046423,-151.0,0.00012287,2]
[347871656,1736175046433,-151.0,0.00012287,2]
[347871659,1736175046444,-151.0,0.00012287,2]
[347871661,1736175046454,-151.0,0.00012287,2]
[347871663,1736175046463,-151.0,0.00012287,2]
[347871681,1736175046637,-151.0,0.00012287,2]
[347871683,1736175046649,-170.008446,0.00012287,2]
[347871685,1736175046659,-170.008446,0.00012287,2]
[347871687,1736175046670,-170.008446,0.00012287,2]
[347871690,1736175046680,-170.008446,0.00012287,2]
[347871692,1736175046690,-500.0,0.00012289,2]
[347871694,1736175046700,-10999.99375777,0.0001229,2]
[347871696,1736175046710,-413761.00149433,0.0001229,5]
[347871698,1736175046720,-150.0,0.0001229,2]
[347871700,1736175046729,-500.0,0.00012292,2]
[347871702,1736175046739,-152.94516413,0.00012292,2]
[347871704,1736175046749,-169.49843931,0.00012292,2]
[347871706,1736175046759,-500.0,0.00012292,2]
[347871708,1736175046769,-150.0,0.00012292,2]
[347871710,1736175046778,-266.84424685,0.00012292,2]
[347871712,1736175046788,-500.0,0.00012292,2]
[347871714,1736175046798,-150.03740123,0.00012292,2]
[347871716,1736175046808,-150.05251853,0.00012292,2]
[347871717,1736175046817,-500.0,0.00012292,2]
[347871720,1736175046827,-150.0,0.00012292,2]
[347871721,1736175046836,-3771.0,0.00012292,2]
[347871724,1736175046847,-6641.3962641,0.00012292,2]
[347871726,1736175046856,-5488.1646099,0.00012292,2]
[347871727,1736175046866,-4334.9329557,0.00012292,2]
[347871730,1736175046876,-3181.7013015,0.00012292,2]
[347871731,1736175046885,-2401.2986849,0.00012292,2]
[347871733,1736175046895,-1984.3300921,0.00012292,2]
[347871735,1736175046905,-1567.3614993,0.00012292,2]
[347871737,1736175046915,-1150.3929064,0.00012292,2]
[347871740,1736175046926,-91969.32276568,0.00012298,2]
[347871742,1736175046937,-4381.46474843,0.00012299,3]
[347871744,1736175046946,-3613.58314297,0.00012299,2]
[347871746,1736175046955,-150.0,0.00012299,2]
[347871748,1736175046964,-3584351.0131019,0.000123,2]
[347871775,1736175047238,-2305372.84941615,0.000123,2]
[347871777,1736175047251,-30812.78687433,0.000123,2]
[347871779,1736175047265,-2787.03763596,0.000123,2]
[347871782,1736175047280,-6879.04191615,0.000123,2]
[347871820,1736175047734,-487.63832247,0.0001082,2]
[347871823,1736175047746,-12.36167753,0.0001082,2]
[347871825,1736175047756,-480.31032243,0.00011094,2]
[347871827,1736175047767,-19.68967757,0.00011094,2]
[347871829,1736175047778,-431.94132407,0.00011267,2]
[347871832,1736175047794,-669.99823175,0.00011267,2]
[347871834,1736175047806,-1.06044418,0.00011267,2]
[347871836,1736175047815,-1033.29505582,0.0001129,2]
[347871838,1736175047827,-92.81494418,0.0001129,2]
[347871840,1736175047837,-1077.54,0.00011368,2]
[347871842,1736175047846,-500.0,0.00011368,2]
[347871844,1736175047856,-1126.11,0.00011564,2]
[347871846,1736175047866,-1077.54,0.00011642,2]
[347871848,1736175047875,-1126.11,0.00011838,2]
[347871850,1736175047886,-1077.54,0.00011916,2]
[347871852,1736175047895,-1126.11,0.00012112,2]
[347871854,1736175047905,-11471.32663218,0.000123,2]
[347871856,1736175047917,-663.66219947,0.000123,2]
[347871858,1736175047929,-36978.35314166,0.000123,2]
[347871861,1736175047948,-208837.17531704,0.000123,2]
[347871863,1736175047961,-2871.0,0.000123,2]
[347871866,1736175047972,-44796.00034188,0.000123,2]
[347871868,1736175047984,-11782.01652183,0.000123,2]
[347871870,1736175047995,-15496.3904939,0.000123,2]
[347871872,1736175048007,-719.26217371,0.000123,2]
[347871874,1736175048018,-245925.92633559,0.000123,2]
[347871876,1736175048029,-308902.33896252,0.000123,2]
[347871879,1736175048040,-1484.19,0.000123,2]
[347871881,1736175048053,-4220.74957971,0.000123,2]
[347871883,1736175048065,-373177.11276258,0.000123,2]
[347871886,1736175048084,-7920.20925651,0.000123,2]
[347871888,1736175048095,-361.45361106,0.000123,2]
[347871890,1736175048111,-23984.85972935,0.000123,2]
[347871892,1736175048123,-279.714,0.000123,2]
[347871895,1736175048142,-250.78536569,0.000123,2]
[347871897,1736175048154,-2846.8501905,0.000123,2]
[347871900,1736175048167,-800.86626729,0.000123,2]
[347871902,1736175048186,-6229.36169738,0.000123,2]
[347871904,1736175048208,-1270.03902528,0.000123,2]
[347871906,1736175048222,-10942.7135776,0.000123,2]
[347871909,1736175048242,-331.2000025,0.000123,2]
[347871911,1736175048255,-92282.9591629,0.000123,2]
[347871913,1736175048268,-1024.40731465,0.000123,2]
[347871915,1736175048281,-9189.9999999,0.000123,2]
[347871939,1736175048503,-500.0,0.00011266,2]
[347871941,1736175048513,-217.66,0.0001154,2]
[347871942,1736175048523,-500.0,0.00011583,2]
[347871945,1736175048532,-500.0,0.00011642,2]
[347871946,1736175048542,-221.8003212,0.00011916,2]
[347871949,1736175048554,-278.1996788,0.00011916,2]
[347871951,1736175048564,-1077.54,0.0001219,2]
[347871953,1736175048574,-500.0,0.0001219,2]
[347871955,1736175048585,-10645.16148924,0.000123,2]
[347871957,1736175048598,-957.52,0.000123,2]
[347871959,1736175048610,-9309.10477623,0.000123,2]
[347871962,1736175048622,-2310.66123845,0.000123,2]
[347871964,1736175048634,-496.302152,0.000123,2]
[347872025,1736175049269,-1835.35025848,0.000123,2]
[347872027,1736175049281,-522.01898272,0.000123,2]
[347872029,1736175049293,-80313.82007255,0.000123,2]
[347872031,1736175049306,-10002.1644,0.000123,2]
[347872033,1736175049318,-1157.41739398,0.000123,2]
[347872036,1736175049330,-16098.05822187,0.000123,2]
[347872038,1736175049342,-1267.76873145,0.000123,2]
[347872040,1736175049354,-2255.1699179,0.000123,2]
[347872041,1736175049367,-6800.0,0.000123,2]
[347872042,1736175049379,-2358.24575304,0.000123,2]
[347872043,1736175049392,-13962.22084,0.000123,2]
[347872044,1736175049404,-16166.72813311,0.000123,2]
[347872045,1736175049416,-13038.5,0.000123,2]
[347872046,1736175049428,-325.95661418,0.000123,2]
[347872048,1736175049446,-518.39319041,0.000123,2]
[347872050,1736175049458,-3900.75776183,0.000123,2]
[347872053,1736175049469,-837.98971648,0.000123,2]
[347872055,1736175049486,-827.64663816,0.000123,2]
[347872058,1736175049497,-410.0,0.000123,2]
[347872060,1736175049508,-4647.77442738,0.000123,2]
[347872062,1736175049519,-1128.2971998,0.000123,2]
[347872064,1736175049532,-1840.76203529,0.000123,2]
[347872066,1736175049543,-43034.52744413,0.000123,2]
[347872068,1736175049555,-556.27274948,0.000123,2]
[347872070,1736175049567,-1874.0697,0.000123,2]
[347872072,1736175049578,-431.885,0.000123,2]
[347872075,1736175049590,-302.0,0.000123,2]
[347872077,1736175049602,-19015.551939,0.000123,2]
[347872079,1736175049614,-693.71658246,0.000123,2]
[347872081,1736175049627,-1600.0,0.000123,2]
[347872083,1736175049638,-16650.0,0.000123,2]
[347872086,1736175049650,-9514.47,0.000123,2]
[347872088,1736175049661,-1844.23909692,0.000123,2]
[347872110,1736175049882,164.497684,0.000196,120]
[347873514,1736175065918,164.497684,0.000196,120]
[347873707,1736175078299,164.497684,0.000196,120]
[347873708,1736175089313,164.497684,0.000196,120]
[347873718,1736175523808,-387.22,8.336e-05,2]
[347873724,1736176035474,-1777.69100315,9.999e-05,4]
[347873726,1736176097804,-880.6151479,9.899e-05,2]
[347873727,1736176097829,-3756.2609,0.00010046,2]
[347873728,1736176097856,-203.86480364,0.00010046,2]
[347873729,1736176097896,-300.0,0.00010136,2]
[347873730,1736176097923,-167.43,0.00010137,2]
[347873731,1736176097954,-455.38,0.00010137,2]
[347873732,1736176097980,-477.55,0.00010146,2]
[347873733,1736176098007,-512.11,0.0001017,2]
[347873734,1736176098033,-250.0,0.00010229,2]
[347873735,1736176098060,-1000.0,0.00010285,2]
[347873736,1736176098088,-150.0,0.00010345,2]
[347873737,1736176098114,-500.0,0.00010346,2]
[347873738,1736176098140,-421.63212211,0.00010346,2]
[347873739,1736176098165,-500.0,0.00010346,2]
[347873740,1736176098189,-500.0,0.00010346,2]
[347873741,1736176098215,-500.0,0.00010346,2]
[347873742,1736176098242,-579.39,0.00010346,2]
[347873743,1736176098267,-596.81,0.00010346,2]
[347873744,1736176098294,-733.95702635,0.00010346,2]
[347873745,1736176111593,-5110.8153108,0.00010137,2]
[347873746,1736176111618,-163.99297365,0.00010346,2]
[347873747,1736176111643,-2461.67,0.00010346,2]
[347873748,1736176111667,-500.0,0.00010346,2]
[347873749,1736176111692,-902.72,0.00010346,2]
[347873750,1736176111715,-558.69,0.00010346,2]
[347873751,1736176111739,-500.0,0.00010346,2]
[347873752,1736176111762,-500.0,0.00010346,2]
[347873753,1736176111785,-302.11171555,0.00010346,2]
[347873797,1736176231760,-250.0,0.00010299,2]
[347873798,1736176231770,-64.22734343,0.00010346,2]
[347873799,1736176231782,-133.66094102,0.00010346,2]
[347873800,1736176231792,-500.0,0.00010346,2]
[347873801,1736176231801,-1000.0,0.00010346,2]
[347873802,1736176231811,-500.0,0.00010346,2]
[347873803,1736176231820,-818.83,0.00010346,2]
[347873804,1736176231830,-203.86480364,0.00010378,2]
[347873805,1736176231841,-6327.13,0.00010392,2]
[347873806,1736176231850,-500.0,0.00010493,2]
[347873807,1736176231859,-387.22,0.000106,2]
[347873808,1736176231869,-150.0,0.00010619,2]
[347873809,1736176231878,-174.93,0.0001062,2]
[347873810,1736176231888,-430.39404418,0.0001062,2]
[347873811,1736176231897,-579.39,0.0001062,2]
[347873812,1736176231907,-596.81,0.0001062,2]
[347873813,1736176231916,-897.95,0.0001062,2]
[347873814,1736176231926,-2461.67,0.0001062,2]
[347873815,1736176231935,-500.0,0.0001062,2]
[347873816,1736176231945,-902.72,0.0001062,2]
[347873817,1736176231954,-500.0,0.0001062,2]
[347873818,1736176231965,-500.0,0.0001062,2]
[347873819,1736176231975,-500.0,0.0001062,2]
[347873820,1736176231985,-500.0,0.0001062,2]
[347873821,1736176232002,-500.0,0.0001062,2]
[347873822,1736176232012,-818.83,0.0001062,2]
[347873823,1736176232238,-167.57,0.00010644,2]
[347873824,1736176232263,-203.86480364,0.0001071,2]
[347873825,1736176232273,-2005.8726,0.00010721,2]
[347873826,1736176232282,-500.0,0.00010767,2]
[347873827,1736176232292,-6991.99269862,0.00010795,2]
[347873828,1736176232304,-5128.4343372,0.00010795,2]
[347873829,1736176232315,-2416.1,0.00010795,2]
[347873832,1736176232327,-15463.47296418,0.00010795,2]
[347873834,1736176232336,-502.22,0.0001081,2]
[347873835,1736176232345,-163.9,0.00010829,2]
[347873837,1736176232355,-579.39,0.00010894,2]
[347873839,1736176232364,-596.81,0.00010894,2]
[347873841,1736176232373,-897.95,0.00010894,2]
[347873843,1736176232383,-2461.67,0.00010894,2]
[347873845,1736176232392,-500.0,0.00010894,2]
[347873847,1736176232402,-902.72,0.00010894,2]
[347873849,1736176232412,-500.0,0.00010894,2]
[347873851,1736176232422,-500.0,0.00010894,2]
[347873853,1736176232431,-500.0,0.00010894,2]
[347873855,1736176232441,-500.0,0.00010894,2]
[347873857,1736176232451,-474.55,0.00010894,2]
[347873859,1736176232461,-818.83,0.00010894,2]
[347873861,1736176232470,-179.51058524,0.000109,2]
[347873863,1736176232480,-718.3182,0.00010968,2]
[347873866,1736176232491,-550.0,0.00011,2]
[347873868,1736176232507,-500.0,0.00011041,2]
[347873869,1736176232517,-150.0,0.00011047,2]
[347873871,1736176232526,-500.0,0.00011068,2]
[347873873,1736176232535,-579.39,0.00011168,2]
[347873875,1736176232545,-596.81,0.00011168,2]
[347873877,1736176232555,-897.95,0.00011168,2]
[347873879,1736176232564,-2461.67,0.00011168,2]
[347873881,1736176232574,-500.0,0.00011168,2]
[347873883,1736176232583,-902.72,0.00011168,2]
[347873885,1736176232592,-438.64,0.00011168,2]
[347873887,1736176232602,-500.0,0.00011168,2]
[347873889,1736176232612,-500.0,0.00011168,2]
[347873891,1736176232621,-500.0,0.00011168,2]
[347873893,1736176232630,-818.83,0.00011168,2]
[347873895,1736176232640,-1235.42252751,0.00011181,2]
[347873897,1736176232650,-1235.42252751,0.00011185,2]
[347873899,1736176232661,-3250.8873,0.00011189,2]
[347873901,1736176232670,-1235.42252751,0.00011189,2]
[347873904,1736176232680,-1235.42252751,0.00011195,2]
[347873907,1736176232690,-1235.42252751,0.00011197,2]
[347873910,1736176232699,-1235.42252751,0.00011199,2]
[347873913,1736176232708,-500.0,0.00011266,2]
[347873915,1736176232718,-500.0,0.00011266,2]
[347873918,1736176232728,-500.0,0.00011266,2]
[347873921,1736176232738,-500.0,0.00011266,2]
[347873925,1736176232758,-500.0,0.00011266,2]
[347873927,1736176232768,-500.0,0.00011266,2]
[347873930,1736176232778,-612.71,0.00011266,2]
[347873933,1736176232788,-500.0,0.00011266,2]
[347873936,1736176232798,-512.48,0.00011266,2]
[347873938,1736176232808,-500.0,0.00011266,2]
[347873940,1736176232818,-500.0,0.00011266,2]
[347873942,1736176232828,-2442.73551237,0.00011279,2]
[347873945,1736176232842,-1105.11623385,0.00011279,2]
[347873947,1736176232854,-346.14825378,0.00011279,2]
[347873949,1736176232863,-150.0,0.00011279,2]
[347873951,1736176232873,-949.858,0.00011279,2]
[347873953,1736176232882,-500.0,0.00011289,2]
[347873955,1736176232892,-500.0,0.00011289,2]
[347873957,1736176232903,-500.0,0.00011289,2]
[347873959,1736176232913,-500.0,0.00011289,2]
[347873961,1736176232922,-500.0,0.00011289,2]
[347873963,1736176232932,-500.0,0.00011289,2]
[347873965,1736176232941,-156.09374622,0.00011289,2]
[347873967,1736176232952,-387.67625378,0.00011289,2]
[347873969,1736176232964,-500.0,0.00011289,2]
[347873971,1736176232975,-26.40439642,0.00011289,2]
[347873974,1736176232986,-473.59560358,0.00011289,2]
[347873976,1736176233001,-500.0,0.00011289,2]
[347873978,1736176233011,-500.0,0.00011289,2]
[347873980,1736176233023,-500.0,0.00011289,2]
[347873981,1736176233033,-179.33501846,0.00011289,2]
[347873985,1736176233059,-320.66498154,0.00011289,2]
[347873987,1736176233070,-500.0,0.00011289,2]
[347873989,1736176233081,-500.0,0.00011289,2]
[347873991,1736176233093,-500.0,0.00011289,2]
[347873993,1736176233103,-500.0,0.00011289,2]
[347873995,1736176233113,-503.36357423,0.00011289,2]
[347873997,1736176233124,-500.0,0.00011289,2]
[347873999,1736176233134,-2074.6726,0.0001131,2]
[347874001,1736176233145,-500.0,0.00011314,2]
[347874003,1736176233156,-500.0,0.00011314,2]
[347874005,1736176233167,-500.0,0.00011315,2]
[347874007,1736176233180,-172.56893253,0.00011345,2]
[347874009,1736176233194,-335.88106747,0.00011345,2]
[347874011,1736176233205,-150.0,0.00011345,2]
[347874013,1736176233214,-634.0,0.00011345,2]
[347874015,1736176233224,-566.0,0.00011345,2]
[347874017,1736176233235,-677.564,0.00011345,2]
[347874019,1736176233256,-685.569,0.00011345,2]
[347874021,1736176233267,-262.70932162,0.00011345,2]
[347874023,1736176233280,-558.64076234,0.00011345,2]
[347874025,1736176233293,-2351.89397167,0.00011345,2]
[347874028,1736176233306,-526.74260338,0.00011345,2]
[347874030,1736176233319,-76.01334099,0.00011345,2]
[347874032,1736176233331,-231.82005901,0.00011345,2]
[347874034,1736176233343,-496.86092717,0.00011345,2]
[347874036,1736176233356,-360.06035998,0.00011345,2]
[347874038,1736176233369,-169.25865384,0.00011345,2]
[347874040,1736176233379,-414.66869656,0.00011345,2]
[347874043,1736176233403,-404.33130344,0.00011345,2]
[347874045,1736176233414,-525.429,0.00011345,2]
[347874047,1736176233425,-3975.0,0.00011345,2]
[347874049,1736176233435,-179.51058522,0.000114,2]
[347874051,1736176233446,-500.0,0.00011441,2]
[347874053,1736176233457,-633.82,0.00011441,2]
[347874055,1736176233467,-500.0,0.00011441,2]
[347874057,1736176233478,-1196.5,0.00011441,2]
[347874059,1736176233489,-552.04,0.00011441,2]
[347874061,1736176233506,-822.91,0.00011441,2]
[347874063,1736176233517,-1029.43,0.00011441,2]
[347874065,1736176233528,-500.0,0.00011441,2]
[347874067,1736176233539,-130.69633294,0.00011441,2]
[347874069,1736176233553,-369.30366706,0.00011441,2]
[347874071,1736176233563,-28.19633794,0.00011441,2]
[347874073,1736176233577,-471.80366206,0.00011441,2]
[347874075,1736176233587,-326.98173794,0.00011441,2]
[347874078,1736176233603,-173.01826206,0.00011441,2]
[347874080,1736176233613,-86.69315249,0.00011441,2]
[347874082,1736176233626,-425.41684751,0.00011441,2]
[347874084,1736176233636,-579.39,0.00011442,2]
[347874086,1736176233647,-596.81,0.00011442,2]
[347874088,1736176233658,-897.95,0.00011442,2]
[347874090,1736176233669,-2461.67,0.00011442,2]
[347874092,1736176233679,-500.0,0.00011442,2]
[347874094,1736176233689,-902.72,0.00011442,2]
[347874096,1736176233700,-500.0,0.00011442,2]
[347874098,1736176233710,-500.0,0.00011442,2]
[347874100,1736176233721,-500.0,0.00011442,2]
[347874102,1736176233732,-9.64959558,0.00011442,2]
[347874105,1736176233758,-800.0,0.00011442,2]
[347874107,1736176233772,-9.18040442,0.00011442,2]
[347874109,1736176233783,-160.74932924,0.000115,2]
[347874111,1736176233794,-3313.0,0.00011507,2]
[347874113,1736176233805,-500.0,0.0001154,2]
[347874115,1736176233817,-500.0,0.0001154,2]
[347874117,1736176233828,-241.45,0.0001154,2]
[347874119,1736176233841,-512.48,0.0001154,2]
[347874121,1736176233852,-500.0,0.0001154,2]
[347874123,1736176233863,-500.0,0.0001154,2]
[347874125,1736176233875,-265.17,0.00011563,2]
[347874127,1736176233885,-500.0,0.00011563,2]
[347874129,1736176233896,-500.0,0.00011563,2]
[347874131,1736176233907,-1000.0,0.0001157,2]
[347874132,1736176233917,-500.0,0.00011583,2]
[347874133,1736176233927,-500.0,0.00011583,2]
[347874134,1736176233938,-500.0,0.00011589,2]
[347874135,1736176233948,-285.1843,0.00011615,2]
[347874136,1736176233959,-255.0,0.00011649,2]
[347874137,1736176233969,-3151.36,0.0001167,2]
[347874138,1736176233981,-160.18,0.0001167,2]
[347874139,1736176233994,-480.345,0.0001168,2]
[347874140,1736176234013,-500.0,0.00011715,2]
[347874142,1736176234026,-633.82,0.00011715,2]
[347874143,1736176234036,-500.0,0.00011715,2]
[347874145,1736176234047,-1196.5,0.00011715,2]
[347874147,1736176234059,-552.04,0.00011715,2]
[347874149,1736176234069,-822.91,0.00011715,2]
[347874151,1736176234080,-1029.43,0.00011715,2]
[347874153,1736176234092,-500.0,0.00011715,2]
[347874155,1736176234104,-500.0,0.00011715,2]
[347874157,1736176234115,-500.0,0.00011715,2]
[347874159,1736176234126,-500.0,0.00011715,2]
[347874161,1736176234137,-579.39,0.00011716,2]
[347874163,1736176234147,-596.81,0.00011716,2]
[347874165,1736176234158,-897.95,0.00011716,2]
[347874167,1736176234169,-517.48742566,0.00011716,2]
[347874170,1736176234182,-425.82566966,0.00011716,2]
[347874172,1736176234197,-1518.35690468,0.00011716,2]
[347874174,1736176234208,-500.0,0.00011716,2]
[347874176,1736176234218,-495.01228977,0.00011716,2]
[347874178,1736176234232,-407.70771023,0.00011716,2]
[347874180,1736176234250,-500.0,0.00011716,2]
[347874182,1736176234261,-500.0,0.00011716,2]
[347874184,1736176234273,-492.58110484,0.00011716,2]
[347874186,1736176234283,-818.83,0.00011716,2]
[347874188,1736176234294,-500.0,0.0001176,2]
[347874190,1736176234305,-500.0,0.0001176,2]
[347874192,1736176234316,-500.0,0.0001176,2]
[347874194,1736176234327,-500.0,0.0001176,2]
[347874196,1736176234338,-500.0,0.0001176,2]
[347874198,1736176234349,-500.0,0.0001176,2]
[347874200,1736176234359,-500.0,0.0001176,2]
[347874202,1736176234369,-500.0,0.0001176,2]
[347874204,1736176234380,-1018.53,0.0001176,2]
[347874206,1736176234391,-364.21788528,0.0001176,2]
[347874208,1736176234402,-500.0,0.00011761,2]
[347874210,1736176234413,-500.0,0.00011761,2]
[347874212,1736176234423,-500.0,0.00011761,2]
[347874214,1736176234434,-500.0,0.00011761,2]
[347874216,1736176234445,-597.14,0.00011761,2]
[347874218,1736176234455,-679.53,0.00011761,2]
[347874220,1736176234465,-500.0,0.00011761,2]
[347874222,1736176234476,-500.0,0.00011761,2]
[347874224,1736176234486,-500.0,0.00011761,2]
[347874226,1736176234501,-500.0,0.00011761,2]
[347874228,1736176234512,-452.54087047,0.00011761,2]
[347874230,1736176234522,-449.929933,0.00011761,2]
[347874232,1736176234532,-384.014698,0.00011761,2]
[347874234,1736176234542,-470.027102,0.00011761,2]
[347874236,1736176234552,-500.0,0.00011761,2]
[347874238,1736176234562,-500.0,0.00011761,2]
[347874240,1736176234572,-500.0,0.00011761,2]
[347874242,1736176234582,-536.52,0.00011761,2]
[347874244,1736176234592,-500.0,0.00011761,2]
[347874246,1736176234602,-500.0,0.00011761,2]
[347874248,1736176234612,-500.0,0.00011761,2]
[347874250,1736176234622,-622.02,0.00011761,2]
[347874252,1736176234632,-537.41,0.00011761,2]
[347874254,1736176234642,-500.0,0.00011761,2]
[347874255,1736176234652,-198.53,0.00011761,2]
[347874257,1736176234662,-500.0,0.00011761,2]
[347874259,1736176234672,-500.0,0.00011761,2]
[347874262,1736176234682,-545.94,0.00011761,2]
[347874264,1736176234692,-500.0,0.00011761,2]
[347874266,1736176234702,-500.0,0.00011761,2]
[347874268,1736176234711,-500.0,0.00011761,2]
[347874270,1736176234721,-382.19797199,0.00011761,2]
[347874272,1736176234732,-1115.2,0.00011761,2]
[347874273,1736176234747,-500.0,0.00011761,2]
[347874275,1736176234757,-500.0,0.00011761,2]
[347874278,1736176234768,-500.0,0.00011761,2]
[347874279,1736176234778,-500.0,0.00011761,2]
[347874281,1736176234789,-500.0,0.00011761,2]
[347874284,1736176234800,-320.16760481,0.00011761,2]
[347874285,1736176234810,-500.0,0.00011761,2]
[347874288,1736176234821,-57.91561618,0.00011761,2]
[347874290,1736176234834,-442.08438382,0.00011761,2]
[347874292,1736176234845,-247.06464599,0.00011761,2]
[347874294,1736176234857,-252.93535401,0.00011761,2]
[347874296,1736176234867,-25.93391479,0.00011761,2]
[347874298,1736176234878,-474.06608521,0.00011761,2]
[347874300,1736176234888,-500.0,0.00011761,2]
[347874302,1736176234897,-500.0,0.00011761,2]
[347874304,1736176234907,-491.60429228,0.00011761,2]
[347874306,1736176234916,-500.0,0.00011761,2]